Cogmind - Beta 9.4 @@@ ROGUE MODE // 2020.03.03 @ 20:42:40 Player: timonkot131 Result: Destroyed by Y-45 Defender with Heavy Assault Rifle Performance ------------- Evolutions (1) 500 Regions Visited (2) 400 Robots Destroyed (38) 190 Value Destroyed (901) 901 Prototype IDs (1) 20 Alien Tech Used (0) 0 Bonus (0) 0 TOTAL SCORE: 2011 Bonus ------- None Cogmind --------- Core Integrity 0/400 Matter 300/300 Energy 210/250 System Corruption 3% Temperature Cool (140) Movement Core (1250) Ox24 Location -9/Materials Parts ------- > --- POWER (1) -------- Ion Engine > --- PROPULSION (2) --- (None) > --- UTILITY (4) ------ Large Storage Unit Large Storage Unit High-capacity Storage Unit Light Armor Plating > --- WEAPON (2) ------- Heavy EM Pulse Gun > --- INVENTORY (24) --- Ion Engine Ion Engine Light Ion Engine Light Treads Light Treads Light Treads Light Treads Light Treads Aluminum Leg Aluminum Leg Wheel Compact Wheel Heat Sink Medium Storage Unit Medium Storage Unit Large Matter Pod (150) Improved Sensor Array Light Armor Plating EM Pulse Gun Heavy EM Pulse Gun Particle Cannon Light Assault Rifle Light Assault Rifle Katana Peak State ------------ > --- POWER ------------ Ion Engine > --- PROPULSION ------- Light Treads Light Treads > --- UTILITY ---------- Large Storage Unit Large Storage Unit High-capacity Storage Unit Core Shielding > --- WEAPON ----------- Heavy EM Pulse Gun Katana > --- INVENTORY -------- Ion Engine Ion Engine Light Ion Engine Light Treads Light Treads Light Treads Aluminum Leg Aluminum Leg Wheel Compact Wheel Heat Sink Medium Storage Unit Medium Storage Unit Large Matter Pod Improved Sensor Array Light Armor Plating EM Pulse Gun Heavy EM Pulse Gun Heavy EM Pulse Gun Heavy EM Pulse Gun Improved Medium Laser Particle Cannon Light Assault Rifle Light Assault Rifle [Rating: 15] Favorites ----------- Power Ion Engine Engine Ion Engine Propulsion Light Treads Treads Light Treads Wheel Wheel Utility Large Storage Unit Storage Large Storage Unit Protection Core Shielding Weapon EM Pulse Gun Energy Gun EM Pulse Gun Ballistic Gun Autogun Impact Weapon Hammer Slashing Weapon Katana Build | -11 -10 -9 ------- Run | Scr Mat Mat Slots Evolved 2 | . . 2 Power . | . . . Propulsion . | . . . Utility 2 | . . 2 Weapon . | . . . Parts Attached 42 | 6 4 32 Power 4 | 1 1 2 Engine 4 | 1 1 2 Core . | . . . Reactor . | . . . Propulsion 7 | 2 . 5 Treads 5 | . . 5 Leg . | . . . Wheel 2 | 2 . . Hover . | . . . Flight . | . . . Utility 7 | 1 3 3 Device . | . . . Storage 5 | 1 3 1 Processor . | . . . Hackware . | . . . Protection 2 | . . 2 Artifact . | . . . Weapon 24 | 2 . 22 Energy Gun 14 | 2 . 12 Energy Cannon . | . . . Ballistic Gun 3 | . . 3 Ballistic Cannon . | . . . Launcher . | . . . Special Weapon . | . . . Impact Weapon 1 | . . 1 Slashing Weapon 6 | . . 6 Piercing Weapon . | . . . Special Melee Weapon . | . . . Unidentified Prototypes 1 | . . 1 Parts Lost 11 | . . 11 Power . | . . . Propulsion 5 | . . 5 Utility 1 | . . 1 Weapon 5 | . . 5 Highest Loss Streak 4 | . . 4 Average Slot Usage (%) 96 | . 98 95 Engine 11 | . 14 11 Treads 15 | . . 19 Wheel 7 | . 28 1 Storage 31 | . 26 33 Protection 5 | . . 7 Energy Gun 14 | . 28 10 Ballistic Gun 3 | . . 4 Impact Weapon 1 | . . 2 Slashing Weapon 3 | . . 3 Naked Turns . | . . . Heaviest Build 78 | 12 56 78 Greatest Support 40 | 26 26 40 Greatest Overweight (x) 3 | . 2 3 Average Overweight (x) 1 | . 1 1 Largest Inventory Capacity 24 | 6 18 24 Average Capacity 21 | 5 16 24 Most Carried 24 | 6 18 24 Average Carried 18 | 2 13 19 Final Capacity 24 | 6 18 24 Final Carried 24 | 6 18 24 Class Distribution -------------------- 77% | Hauler-Mutant 22% | Mutant Dominant Class ---------------- Mutant | -10/Materials Hauler-Mutant | -9/Materials Resources | -11 -10 -9 ----------- Run | Scr Mat Mat Matter Collected 902 | 205 241 456 Remotely . | . . . Salvage Created 1322 | . 189 1133 Parts 86 | . 14 72 Haulers Intercepted 4 | . 1 3 Recyclers Shooed 1 | . . 1 Parts Field Recycled . | . . . Retrieved Matter . | . . . Parts Self-Destructed . | . . . Prevented . | . . . Kills | -11 -10 -9 ------- Run | Scr Mat Mat Combat Hostiles Destroyed 32 | . 5 27 Melee 2 | . . 2 Guns 27 | . 5 22 AOE 2 | . . 2 Classes Destroyed 8 | . 3 5 Worker 1 | . . 1 Hauler 4 | . 1 3 Operator 1 | . . 1 Swarmer 13 | . 3 10 Grunt 12 | . 2 10 Brawler 1 | . . 1 Duelist 1 | . . 1 Sentry 5 | . . 5 Best Kill Streak 7 | . 3 7 Combat Bots Only 6 | . 3 6 Max Kills in Single Turn 2 | . 1 2 Gunslinging 1 | . . 1 Exploded 1 | . . 1 Melee 1 | . . 1 Uniques/NPCs Destroyed . | . . . Combat | -11 -10 -9 -------- Run | Scr Mat Mat Damage Taken 1984 | . 109 1875 Core 425 | . 16 409 Absorbed by Shields . | . . . Core Remaining (%) 96 | 100 93 . Volleys Fired 87 | . 14 73 Largest 2 | . 2 2 Hottest 90 | . 80 90 Shots Fired 170 | . 28 142 Gun 170 | . 28 142 Cannon . | . . . Launcher . | . . . Special . | . . . Kinetic 44 | . . 44 Thermal 28 | . 14 14 Explosive . | . . . Electromagnetic 98 | . 14 84 Robot Hit Streak 30 | . 11 30 Robot Miss Streak 3 | . 1 3 Penetration Max . | . . . Secondary Targets 4 | . . 4 Max Gunslinging Chain 1 | . . 1 Shots Hit Robots 128 | . 14 114 Core Hits 51 | . 8 43 Critical Hits 1 | . . 1 Critical Kills . | . . . Critical Parts Destroyed 1 | . . 1 Melee Attacks 92 | . . 92 Impact 55 | . . 55 Slashing 37 | . . 37 Piercing . | . . . Sneak Attacks 2 | . . 2 Combat Hostiles . | . . . Follow-up Attacks . | . . . Damage Inflicted 2336 | . 187 2149 Guns 1636 | . 172 1464 Cannons . | . . . Explosions 506 | . . 506 Melee 177 | . . 177 Ramming 17 | . 15 2 Kinetic 523 | . . 523 Thermal 631 | . 45 586 Explosive . | . . . Electromagnetic 988 | . 127 861 Impact 60 | . . 60 Slashing 117 | . . 117 Piercing . | . . . Highest Corruption 3 | . . 3 Average Corruption 3 | . . 3 Corruption Purged . | . . . Effects 1 | . . 1 Data Loss (minor) 1 | . . 1 Overload Shots . | . . . Overflow Damage 46 | . . 46 Projectiles . | . . . Explosions 34 | . . 34 Melee 12 | . . 12 Knockbacks 1 | . . 1 Impact 1 | . . 1 Kinetic . | . . . Secondary . | . . . Self-Inflicted Damage 169 | . 7 162 Shots 4 | . . 4 Rammed 2 | . 2 . Targets Rammed 3 | . 2 1 Kicked . | . . . Crushed 1 | . . 1 Highest Temperature 177 | . 84 177 Average Temperature 43 | . 28 47 Received Heat Transfer 432 | . 12 420 Siege Activations . | . . . Robots Corrupted 1 | . . 1 Combat Hostiles 1 | . . 1 Parts Fried 5 | . . 5 Impact Corruptions 1 | . . 1 Robots Melted . | . . . Combat Hostiles . | . . . Parts Melted 1 | . . 1 Heat Transferred 1025 | . 100 925 Parts Sabotaged . | . . . Parts Stolen . | . . . Parts Stripped . | . . . Power Chain Reactions 6 | . . 6 Missiles Intercepted . | . . . Alert | -11 -10 -9 ------- Run | Scr Mat Mat Peak Influence 358 | . 167 358 Average Influence 129 | . 97 143 Maximum Alert Level 1 | . . 1 Low Security (%) 93 | 100 100 90 Level 1 6 | . . 9 Level 2 . | . . . Level 3 . | . . . Level 4 . | . . . Level 5 . | . . . High Security . | . . . Max Security . | . . . Squads Dispatched 8 | . 2 6 Investigation 1 | . 1 . Extermination . | . . . Reinforcement 7 | . 1 6 Assault . | . . . Garrison . | . . . Intercept . | . . . Construction Impeded 1 | . . 1 Haulers Reinforced . | . . . Stealth | -11 -10 -9 --------- Run | Scr Mat Mat Distress Signals 3 | . 1 2 Communications Jammed . | . . . Distress Signals . | . . . Times Spotted 63 | . 8 55 Peak Tracking Total 8 | . 4 8 Tactical Retreats 3 | . . 3 Traps | -11 -10 -9 ------- Run | Scr Mat Mat Traps Triggered 2 | . 2 . Indirectly . | . . . Trap Hack Attempts . | . . . Triggered . | . . . Disarmed . | . . . Reprogrammed . | . . . Reused . | . . . Traps Extracted . | . . . Installed . | . . . Triggered . | . . . Machines | -11 -10 -9 ---------- Run | Scr Mat Mat Machines Disabled 3 | . 1 2 Max in Single Turn 1 | . 1 1 Machines Sabotaged . | . . . Garrisons Compromised . | . . . Overloaded Fab Kills . | . . . Fab Network Shutdowns . | . . . Hacking | -11 -10 -9 --------- Run | Scr Mat Mat Machines Accessed 4 | . 1 3 Terminals 4 | . 1 3 Fabricators . | . . . Repair Stations . | . . . Recycling Units . | . . . Scanalyzers . | . . . Garrison Access . | . . . Total Hacks 6 | . 1 5 Successful 4 | . 1 3 Failed 2 | . . 2 Catastrophic . | . . . Database Lockouts . | . . . Manual 2 | . . 2 Terminals 6 | . 1 5 Fabricators . | . . . Repair Stations . | . . . Recycling Units . | . . . Scanalyzers . | . . . Garrison Access . | . . . Terminal Hacks 4 | . 1 3 Record 1 | . . 1 Alert Level 1 | . . 1 Locate Traps 1 | . . 1 Transport Status 1 | . 1 . Fabricator Hacks . | . . . Repair Station Hacks . | . . . Recycling Unit Hacks . | . . . Scanalyzer . | . . . Garrison Access Hacks . | . . . Unauthorized Hacks . | . . . Terminals . | . . . Fabricators . | . . . Repair Stations . | . . . Recycling Units . | . . . Scanalyzers . | . . . Garrison Access . | . . . Data Cores Recovered . | . . . Used . | . . . Hacking Detections 1 | . . 1 Full Trace Events . | . . . Feedback Events . | . . . Feedback Blocked . | . . . Robot Schematics Acquired . | . . . Robots Built . | . . . Matter . | . . . Time . | . . . Total Robot Build Rating . | . . . Part Schematics Acquired . | . . . Parts Built . | . . . Matter . | . . . Time . | . . . Total Part Build Rating . | . . . Parts Repaired . | . . . Time . | . . . Parts Recycled . | . . . Recycled Matter . | . . . Retrieved Matter . | . . . Retrieved Components . | . . . Parts Scanalyzed . | . . . Part Schematics Acquired . | . . . Parts Damaged . | . . . Bothacking | -11 -10 -9 ------------ Run | Scr Mat Mat Used RIF Installer . | . . . Robots Hacked . | . . . Non-combat . | . . . Combat . | . . . Robot Hacks Applied . | . . . Relay Couplers Released . | . . . Robots Rewired . | . . . Allies Hacked . | . . . Hacks Repelled . | . . . Allies | -11 -10 -9 -------- Run | Scr Mat Mat Total Allies . | . . . Largest Group . | . . . Highest-Rated Group . | . . . Highest-Rated Ally . | . . . Total Orders . | . . . Ally Attacks . | . . . Total Damage . | . . . Kills . | . . . Allies Corrupted . | . . . Allies Melted . | . . . Intel | -11 -10 -9 ------- Run | Scr Mat Mat Robot Analysis Total . | . . . Derelict Logs Recovered . | . . . Drone Launches . | . . . Drone Recoveries . | . . . Exploration | -11 -10 -9 ------------- Run | Scr Mat Mat Turns Passed 2061 | 60 415 1586 Spaces Moved 890 | 53 291 546 Core 7 | 7 . . Treads 517 | . . 517 Legs . | . . . Wheels 366 | 46 291 29 Hover . | . . . Flight . | . . . Fastest Speed 50 | 50 90 110 Average Speed 148 | 85 105 177 Slowest Speed 220 | 100 110 220 Overloaded Moves . | . . . Propulsion Burnouts . | . . . Robots Hopped . | . . . Cave-ins Triggered . | . . . Exploration Rate (%) 35 | 3 43 59 Regions Visited 2 Branch Regions . Pre-discovered Areas . | . . . Known Exits Taken . | . . . Unknown Exits Taken 2 | 1 1 . Scrap Searched . | . . . Spaces Dug 40 | . . 40 Terrain Destroyed 65 | . . 65 Melee 40 | . . 40 Projectile . | . . . AOE 25 | . . 25 Actions | -11 -10 -9 --------- Run | Scr Mat Mat Total 1321 | 64 369 888 Wait 155 | . 46 109 Move 888 | 52 290 546 Hop . | . . . Pick Up 42 | 6 11 25 Fast Attach 9 | 6 2 1 Attach 10 | . . 10 Detach . | . . . Swap 23 | . 2 21 Drop 12 | . 2 10 Fire 87 | . 14 73 Melee 92 | . . 92 Ram 2 | . 2 . Kick . | . . . Crush 1 | . . 1 Escape Stasis . | . . . Rewire . | . . . Trap . | . . . Miscellaneous . | . . . Route ------- -11/Scrapyard -10/Materials -9/Materials (discovered 1 exit: [*Min]) History --------- Turn | Location | Event 17 | -11/Scrapyard | Discovered new exit (range 16) 61 | -11/Scrapyard | Entered Materials 308 | -10/Materials | Build established: Mutant 411 | -10/Materials | Discovered new exit (range 12) 476 | -10/Materials | Entered another Materials area 476 | -9/Materials | Evolved 2 slots: Utility x2 769 | -9/Materials | Build established: Hauler-Mutant 1039 | -9/Materials | Core integrity fell below 50% 1396 | -9/Materials | Lost 4 parts (2n2w) 1740 | -9/Materials | Discovered new exit (range 5) 1993 | -9/Materials | Core integrity fell below 20% 2062 | -9/Materials | Destroyed by Y-45 Defender with Heavy Assault Rifle Last Messages --------------- 02011_ U-05 Engineer builds a Wall. 02014_ K-01 Serf collects debris. 02019_ C-30 ARC bursts open, deploying its payload. 02019_ S-10 Pest unfolds itself. 02019_ K-01 Serf collects debris. 02021_ U-05 Engineer lays Concrete. 02022_ K-01 Serf collects debris. 02022_ Lgt. Treads destroyed. 02022_ U-05 Engineer lays Concrete. 02030_ S-10 Pest destroyed. 02034_ Switching to secondary target: S-10 Pest. 02034_ S-10 Pest destroyed. 02041_ Acquired 17 matter. 02041_ U-05 Engineer lays Concrete. 02050_ Lgt. Treads destroyed. 02054_ U-05 Engineer builds a Wall. 02054_ K-01 Serf collects debris. 02059_ Hvy. EM Pulse Gun destroyed. 02061_ Y-45 Defender destroyed. 02061_ K-01 Serf collects debris. Map ----- +----------------------------------------------------+ | ????????????????????????????????????????????????? | | ????????????????????????????????????????????????? | | ????????????????????????????????????????????????? | | ????????????????????????????????????????????????? | | ????????????????????????????????????????????????? | | ????????????????????????????????????????????????? | | ????????????????????????????????????????????????? | | ????????????????????????????????????????????????? | | ????????????????????????????????????????????????? | | ????????????????????????????????????????????????? | | ????????????????????????????????????????????????? | | ????????????????????????????????????????????????? | | ????????????????????????????????????????????????? | | ????????????????????????????????????????????????? | | ????????????????????????????????????????????????? | | ????????????????????????????????????????????????? | | ????????????????????????????????????????????????? | | ????????????????????????????????????????????????? | | ???????????????????????????????????? ##????????? | | ?????????????????????????########## #????????? | | ?????????????????????????#// Y #????????? | | ???????????#####?????????#// != ????????????? | | ???????????? ????????#!! *%#???????????????? | | ????????????? ????????#!! =!#???????????????? | | ?????????????? ??????##!!k* #???????????????? | | ???????????????# ????###@!!kg[t#???????????????? | | ???????????????# #####g##### ##??????????????? | | ???????????????# # =u##### #??????????????? | | ???????????????# !* #??????????????? | | ???????????????# = o T #??????????????? | | ???????????????# #= % ##### #??????????????? | | ???????????????#% ##/########??##??????????????? | | ???????????????# #*%[ #??????????????????? | | ???????????????# # % """ #??????????????????? | | ###????????????# #[[[ """ #??????????????????? | | ############## #[[[ """ #??????????????????? | | #[[ #??????????????????? | | # #??????????????????? | | # #?????? ??????????? | | ###+########## #[ #????? ???????????? | | ### """" #??# ######"####???? ????????????? | | ??# """" #??# ######"#?????##+###??????????? | | ??# """" #??# # ####### #??????????? | | ??# #### % ????????? | | ??# + % # ! ????????? | | ??# !! #### % # ????????? | | ??# ! ##### ## ## ## ##?????????? | | ??# ! #####+####+#### #????###??????????? | | ??############ =%% % # #?????????????????? | | ?????????????# = % # ##????????????????? | +----------------------------------------------------+ Best States ------------- Heat Dissipation 28 Energy Generation 10 Energy Capacity 250 Matter Stores 300 Matter Capacity 300 Sight Range 16 Terrain Scan Density 10 Armor Coverage 150 Core Shielding 20 Evasion (%) 42 Recoil Reduction 2 Item Schematics ----------------- None Robot Schematics ------------------ None Fabricated ------------ Nothing Alien Tech Used ----------------- None Achievements -------------- None Challenges ------------ None Game ------ Seed PointFusionUnit Manual? 0 Play Time 00:26:29 Cumulative 60.1 hours Start 2020.03.03 @ 20:11:46 End 2020.03.03 @ 20:42:40 Sessions 1 Manual Loads 0 Difficulty Rogue Special Mode None Game No. 69 Rogue 69 Adventurer 0 Explorer 0 Win Type - Total 0 Types 0/0/0/0/0/0/0 Lore% 31 Gallery% 41 Achievement% 27 Wizard Run 0 Options --------- ASCII 0 Keyboard 0 Movement Mouse Keybinds 0 Fullscreen 1 Font 20/SmallcapsGlow Map View 66x50 Tactical HUD 1 Map Filters NONE Filters NONE Steam 1 RUN: 5550e5c2-c87c-4914-979e-21c9d52ddfa8